Cogmind - Beta 17.1 @@@ ROGUE MODE // 2026.08.25 @ 14:41:58 Player: LandRaider Result: Destroyed by Y-45 Defender with Heavy Assault Rifle Performance ------------- Evolutions (2) 1000 Regions Visited (4) 800 Robots Destroyed (62) 310 Value Destroyed (1509) 1509 Prototype IDs (2) 40 Alien Tech Used (0) 0 Bonus (7605) 7605 TOTAL SCORE: 11264 Bonus ------- High Alert Combat Kills 370 Follower Combat Kills 785 Prayed to X0-1V1 5000 Major X0-1V1 Interference 1450 Cogmind --------- Core Integrity 0/550 Matter 300/300 Energy 290/290 System Corruption 0% Temperature Cool (12) Movement Walking (190) Ox1 Location -8/Materials Parts ------- > --- POWER (1) -------- Reinforced Deuterium Engine > --- PROPULSION (3) --- Aluminum Leg Aluminum Leg Wheel > --- UTILITY (5) ------ Improved Heat Sink Medium Storage Unit Improved Signal Interpreter Advanced Targeting Computer X0-1V1's Piety Tracker > --- WEAPON (2) ------- Particle Gun Great Axe > --- INVENTORY (10) --- Light Nuclear Core Aluminum Leg Seismic Detector Particle Charger Graphene Brace Hacking Suite System Shield Particle Gun Heavy Laser Scythe Peak State ------------ > --- POWER ------------ Light Angular Momentum Engine > --- PROPULSION ------- Armored Treads Armored Treads Armored Treads > --- UTILITY ---------- Advanced Heat Sink Medium Storage Unit Improved Sensor Array Improved Signal Interpreter X0-1V1's Piety Tracker > --- WEAPON ----------- Gauss Rifle Grenade Launcher > --- INVENTORY -------- Light Ion Engine Armored Treads Advanced Treads Shock Absorption System Hacking Suite System Shield Light Assault Rifle Light Assault Rifle Autogun Great Axe [Rating: 46] Favorites ----------- Power Ion Engine Engine Ion Engine Power Core Light Nuclear Core Propulsion Light Treads Treads Light Treads Leg Aluminum Leg Wheel Wheel Utility Medium Storage Unit Device X0-1V1's Piety Tracker Storage Medium Storage Unit Processor Improved Signal Interpreter Weapon Medium Laser Energy Gun Medium Laser Ballistic Gun Light Assault Rifle Ballistic Cannon Light Cannon Launcher Grenade Launcher Slashing Weapon Great Axe Build | -11 -10 -10 -9 -8 ------- Run | Yrd Mat Min Mat Mat Slots Evolved 4 | . . . 2 2 Power . | . . . . . Propulsion 1 | . . . . 1 Utility 3 | . . . 2 1 Weapon . | . . . . . Parts Attached 52 | 7 5 2 1 37 Power 10 | 1 1 1 . 7 Engine 6 | 1 1 1 . 3 Core 4 | . . . . 4 Reactor . | . . . . . Propulsion 14 | 2 . . . 12 Treads 8 | 2 . . . 6 Leg 5 | . . . . 5 Wheel 1 | . . . . 1 Hover . | . . . . . Flight . | . . . . . Utility 13 | 2 3 . . 8 Device 8 | 1 2 . . 5 Storage 3 | 1 1 . . 1 Processor 2 | . . . . 2 Hackware . | . . . . . Protection . | . . . . . Artifact . | . . . . . Weapon 15 | 2 1 1 1 10 Energy Gun 7 | 2 . 1 . 4 Energy Cannon . | . . . . . Ballistic Gun 4 | . . . 1 3 Ballistic Cannon 2 | . 1 . . 1 Launcher 1 | . . . . 1 Special Weapon . | . . . . . Impact Weapon . | . . . . . Slashing Weapon 1 | . . . . 1 Piercing Weapon . | . . . . . Special Melee Weapon . | . . . . . Unidentified Prototypes 2 | . 1 . . 1 Parts Lost 21 | . 1 . 3 17 Power 5 | . . . 1 4 Propulsion 7 | . . . 1 6 Utility 3 | . 1 . . 2 Weapon 6 | . . . 1 5 Highest Loss Streak 11 | . 1 . 2 11 To Critical Strikes . | . . . . . Average Backups 8 | 4 9 9 8 8 Power . | . 1 1 1 . Propulsion 2 | 3 4 3 3 1 Utility 1 | . 1 2 1 2 Weapon 3 | . 2 3 3 3 Tool/Special . | . . . . . Unused Backups 14 | . 1 1 . 12 Power 2 | . . . . 2 Propulsion 3 | . . 1 . 2 Utility 5 | . . . . 5 Weapon 4 | . 1 . . 3 Tool/Special . | . . . . . Average Slot Usage (%) 92 | . 96 100 70 93 Engine 9 | . 14 14 6 5 Core 1 | . . . . 2 Treads 22 | . 28 28 14 19 Leg 1 | . . . . 3 Device 17 | . 10 14 18 23 Storage 11 | . 14 14 11 9 Processor 4 | . . . . 10 Energy Gun 10 | . 21 14 5 3 Ballistic Gun 3 | . . . 4 6 Ballistic Cannon 5 | . 6 14 11 1 Launcher 1 | . . . . 3 Peak Build Rating 46 | 7 20 20 20 46 Average Rating 25 | 5 10 19 18 38 On Entrance 12 | . 7 20 19 18 Avg Prop Armor Cover (%) 8 | . . . . 8 Naked Turns . | . . . . . Heaviest Build 39 | 12 21 21 19 39 Greatest Support 62 | 40 40 40 40 62 Greatest Overweight (x) 3 | . . . . 3 Average Overweight (x) . | . . . . . Largest Inventory Capacity 10 | 8 10 10 10 10 Average Capacity 9 | 7 9 10 10 10 Most Carried 10 | 6 10 10 10 10 Average Carried 8 | 4 9 9 8 8 Final Capacity 10 | 8 10 10 10 10 Final Carried 10 | 6 10 9 8 10 Class Distribution -------------------- 90% | Mutant 9% | Scavenger-Mutant Dominant Class ---------------- Mutant | -10/Materials Mutant | -10/Mines Mutant | -9/Materials Mutant | -8/Materials Resources | -11 -10 -10 -9 -8 ----------- Run | Yrd Mat Min Mat Mat Matter Collected 1325 | 270 64 90 16 885 Remotely . | . . . . . Salvage Created 2074 | 144 421 117 93 1299 Parts 106 | 6 15 7 9 69 Haulers Intercepted 4 | . 2 . . 2 Recyclers Shooed 5 | . 3 . . 2 Parts Field Recycled . | . . . . . Retrieved Matter . | . . . . . Parts Self-Destructed . | . . . . . Prevented . | . . . . . Parts Restored . | . . . . . Kills | -11 -10 -10 -9 -8 ------- Run | Yrd Mat Min Mat Mat Combat Hostiles Destroyed 39 | . 7 4 5 23 Melee 6 | . . . . 6 Guns 21 | . 7 2 3 9 Cannons 6 | . . 2 2 2 AOE 6 | . . . . 6 Classes Destroyed 15 | 3 3 1 1 7 Worker 6 | 1 2 . . 3 Builder 4 | . . . . 4 Tunneler 2 | 1 . . . 1 Hauler 4 | . 2 . . 2 Recycler 4 | 1 2 1 . . Mechanic 2 | . . . . 2 Operator 1 | . . . . 1 Swarmer 10 | . 3 2 3 2 Grunt 21 | . 4 1 . 16 Brawler 1 | . . . . 1 Duelist 1 | . . . . 1 Sentry 4 | . . . 2 2 Hunter 1 | . . . . 1 Heavy 1 | . . . . 1 Assembled 1 | . . 1 . . Best Kill Streak 7 | 2 5 2 3 7 Combat Bots Only 4 | . 3 2 3 4 Max Kills in Single Turn 6 | 1 2 1 1 6 Gunslinging . | . . . . . Exploded 2 | . . . . 2 Melee 1 | . . . . 1 Uniques/NPCs Destroyed . | . . . . . Combat | -11 -10 -10 -9 -8 -------- Run | Yrd Mat Min Mat Mat Hostile Shots Fired 383 | . 31 25 33 294 Missed 107 | . 9 7 13 78 Hits 276 | . 22 18 20 216 Melee 3 | . . 1 . 2 Projectile 273 | . 22 17 20 214 Critical Strikes 12 | . . 1 1 10 Damage Taken 4401 | . 249 248 263 3641 Core 644 | . 11 25 46 562 Absorbed by Shields . | . . . . . Core Remaining (%) 91 | 100 . 85 88 . Volleys Fired 167 | 5 38 14 20 90 Largest 2 | 2 2 2 2 2 Hottest 121 | 90 90 80 70 121 Shots Fired 292 | 10 76 28 33 145 Gun 223 | 10 69 14 13 117 Cannon 47 | . 7 14 20 6 Launcher 22 | . . . . 22 Special . | . . . . . Kinetic 120 | . 7 14 25 74 Thermal 150 | 10 69 14 8 49 Explosive 22 | . . . . 22 Electromagnetic . | . . . . . Robot Hit Streak 12 | 8 9 7 10 12 Robot Miss Streak 4 | . 4 3 2 3 Penetration Max 1 | . . . . 1 Secondary Targets 2 | . 1 . . 1 Max Gunslinging Chain 1 | . 1 . . 1 Shots Hit Robots 204 | 8 44 19 24 109 Core Hits 121 | 4 22 8 7 80 Critical Kills 2 | . . . . 2 Critical Parts Destroyed . | . . . . . Critical Strikes 10 | 1 3 . 2 4 Burn 5 | 1 3 . . 1 Destroy 2 | . . . . 2 Blast 2 | . . . 2 . Sever 1 | . . . . 1 Melee Attacks 24 | . . . . 24 Impact . | . . . . . Slashing 24 | . . . . 24 Piercing . | . . . . . Sneak Attacks 1 | . . . . 1 Combat Hostiles . | . . . . . Follow-up Attacks . | . . . . . Damage Inflicted 5134 | 94 580 284 362 3814 Guns 1959 | 94 510 137 86 1132 Cannons 767 | . 70 147 276 274 Explosions 1712 | . . . . 1712 Melee 696 | . . . . 696 Ramming . | . . . . . Kinetic 1424 | . 70 147 308 899 Thermal 1302 | 94 510 137 54 507 Explosive 1712 | . . . . 1712 Electromagnetic . | . . . . . Impact . | . . . . . Slashing 696 | . . . . 696 Piercing . | . . . . . Highest Corruption . | . . . . . Average Corruption . | . . . . . Corruption Purged . | . . . . . Corruption Blocked . | . . . . . Overload Shots . | . . . . . Overflow Damage 142 | . . 18 . 124 Projectiles 33 | . . 18 . 15 Explosions 21 | . . . . 21 Melee 88 | . . . . 88 Knockbacks 9 | . . 3 . 6 Impact . | . . . . . Kinetic 6 | . . 3 . 3 Secondary 3 | . . . . 3 Self-Inflicted Damage 112 | . . . . 112 Shots 4 | . . . . 4 Rammed . | . . . . . Targets Rammed . | . . . . . Kicked . | . . . . . Crushed . | . . . . . Highest Temperature 180 | 60 180 108 6 24 Average Temperature 53 | 24 66 39 6 8 Received Heat Transfer 1768 | . 90 76 90 1512 Siege Activations . | . . . . . Martial Activations . | . . . . . Shielding Activations . | . . . . . Robots Disrupted . | . . . . . Combat Hostiles . | . . . . . Robots Corrupted . | . . . . . Combat Hostiles . | . . . . . Parts Fried . | . . . . . Impact Corruptions 1 | . . . . 1 Robots Melted . | . . . . . Combat Hostiles . | . . . . . Parts Melted 4 | . 3 . . 1 Heat Transferred 3630 | 334 1561 407 125 1203 Parts Sabotaged . | . . . . . Parts Stolen . | . . . . . Parts Stripped . | . . . . . Power Chain Reactions . | . . . . . Alert | -11 -10 -10 -9 -8 ------- Run | Yrd Mat Min Mat Mat Maximum Alert Level 3 | . . . . 3 Low Security (%) 59 | 100 100 100 100 9 Level 1 11 | . . . . 26 Level 2 3 | . . . . 8 Level 3 24 | . . . . 55 Level 4 . | . . . . . Level 5 . | . . . . . High Security . | . . . . . Max Security . | . . . . . Peak Influence 1041 | 5 117 30 195 1041 Initial 61 | . 3 8 11 61 Average 294 | 1 47 3 100 613 Influence Increases 2343 | 15 264 75 295 1694 Destroy 0b10 Robot/C 1380 | . 140 60 200 980 Destroy 0b10 Robot/NC 160 | 15 30 5 10 100 Destroy Leader 304 | . 34 10 50 210 Allied During Kill 182 | . . . 32 150 Successful Hack 12 | . . . . 12 Select Force Hacks 90 | . 60 . . 30 Disable Machine 30 | . . . . 30 Destroy Structure 95 | . . . 3 92 Lose Combat Pursuer 90 | . . . . 90 Influence Decreases 1326 | 10 247 67 180 822 Entered New Map 119 | . 2 14 19 84 Time Decay 837 | 10 235 53 111 428 Lost Part 210 | . 10 . 30 170 Lost Ally 160 | . . . 20 140 Squads Dispatched 18 | . 4 1 . 13 Investigation 7 | . 3 . . 4 Extermination . | . . . . . Reinforcement 6 | . 1 1 . 4 Assault 2 | . . . . 2 Garrison 3 | . . . . 3 Intercept . | . . . . . Searches Triggered . | . . . . . Construction Impeded 2 | . . . . 2 Haulers Reinforced . | . . . . . Active Scanning Responses . | . . . . . Cargo Convoy Interrupts . | . . . . . Stealth | -11 -10 -10 -9 -8 --------- Run | Yrd Mat Min Mat Mat Distress Signals 9 | . 1 1 1 6 Communications Jammed . | . . . . . Distress Signals . | . . . . . Times Spotted 108 | . 13 19 10 66 Peak Tracking Total 19 | . 4 19 4 12 Tactical Retreats 3 | . . . . 3 Traps | -11 -10 -10 -9 -8 ------- Run | Yrd Mat Min Mat Mat Traps Triggered 2 | . 1 . . 1 Indirectly . | . . . . . Trap Hack Attempts . | . . . . . Triggered . | . . . . . Disarmed . | . . . . . Reprogrammed . | . . . . . Reused 1 | . . 1 . . Traps Extracted . | . . . . . Installed 3 | . . 3 . . Triggered . | . . . . . Most Traps Carried 1 | . . 1 . . Machines | -11 -10 -10 -9 -8 ---------- Run | Yrd Mat Min Mat Mat Machines Disabled 2 | . . . . 2 Max in Single Turn 1 | . . . . 1 Machines Repaired . | . . . . . Machines Dismantled . | . . . . . Machines Sabotaged . | . . . . . Overloaded Fab Kills . | . . . . . Hacking | -11 -10 -10 -9 -8 --------- Run | Yrd Mat Min Mat Mat Machines Accessed 12 | . 5 . . 7 Terminals 6 | . 2 . . 4 Fabricators . | . . . . . Repair Stations 1 | . 1 . . . Recycling Units 4 | . 2 . . 2 Scanalyzers 1 | . . . . 1 Garrison Access . | . . . . . Total Hacks 31 | . 10 . . 21 Successful 17 | . 7 . . 10 Failed 14 | . 3 . . 11 Catastrophic 2 | . . . . 2 Database Lockouts . | . . . . . Manual 18 | . 10 . . 8 Terminals 18 | . 4 . . 14 Fabricators . | . . . . . Repair Stations 1 | . 1 . . . Recycling Units 9 | . 5 . . 4 Scanalyzers 3 | . . . . 3 Garrison Access . | . . . . . Terminal Hacks 1 | . . . . 1 Record 1 | . . . . 1 Fabricator Hacks . | . . . . . Repair Station Hacks . | . . . . . Recycling Unit Hacks 2 | . 1 . . 1 Retrieve Components 2 | . 1 . . 1 Scanalyzer 3 | . . . . 3 Retrieve Study 3 | . . . . 3 Garrison Access Hacks . | . . . . . Unauthorized Hacks 11 | . 6 . . 5 Terminals 5 | . 1 . . 4 Botnet 5 | . 1 . . 4 Fabricators . | . . . . . Repair Stations 1 | . 1 . . . Patch 1 | . 1 . . . Recycling Units 5 | . 4 . . 1 Reject 1 | . 1 . . . Recyclers 1 | . 1 . . . Tunnel 3 | . 2 . . 1 Scanalyzers . | . . . . . Garrison Access . | . . . . . Data Cores Recovered 1 | . . . . 1 Used . | . . . . . Hacking Detections 9 | . 3 . . 6 Full Trace Events 3 | . . . . 3 Feedback Events . | . . . . . Feedback Blocked . | . . . . . Robot Schematics Acquired . | . . . . . Robots Built . | . . . . . Authchips . | . . . . . Time . | . . . . . Total Robot Build Rating . | . . . . . Part Schematics Acquired . | . . . . . Parts Built . | . . . . . Authchips . | . . . . . Time . | . . . . . Total Part Build Rating . | . . . . . Part Studies Acquired 3 | . . . . 3 Parts Repaired . | . . . . . Time . | . . . . . Parts Recycled . | . . . . . Recycled Matter . | . . . . . Retrieved Matter . | . . . . . Retrieved Components 20 | . 10 . . 10 Parts Scanalyzed . | . . . . . Part Schematics Acquired . | . . . . . Parts Damaged . | . . . . . Bothacking | -11 -10 -10 -9 -8 ------------ Run | Yrd Mat Min Mat Mat Used RIF Installer . | . . . . . Robots Hacked . | . . . . . Non-combat . | . . . . . Combat . | . . . . . Robot Hacks Applied . | . . . . . Relay Couplers Released . | . . . . . Fabnet Peak Effective % . | . . . . . Robots Rewired . | . . . . . Allies Hacked . | . . . . . Hacks Repelled . | . . . . . Allies | -11 -10 -10 -9 -8 -------- Run | Yrd Mat Min Mat Mat Total Allies 10 | . . . 4 6 Largest Group 4 | . . . 4 3 Highest-Rated Group 84 | . . . 84 63 Highest-Rated Ally 21 | . . . 21 21 Total Orders . | . . . . . Ally Attacks 122 | . . . 21 101 Total Damage 2154 | . . . 271 1883 Kills 41 | . . . 7 34 Allies Corrupted . | . . . . . Allies Melted . | . . . . . X0-1V1 Amusement Gains 66 | . 16 20 . 30 Average Entertainment 19 | . 14 23 13 19 Good Acts 7 | . . 1 1 5 Bad Acts 6 | . . 2 1 3 Intel | -11 -10 -10 -9 -8 ------- Run | Yrd Mat Min Mat Mat Active Infowar (turns) 828 | 44 191 . . 593 Sensors 593 | . . . . 593 Seismic 235 | 44 191 . . . Robot Analysis Total . | . . . . . Derelict Logs Recovered 1 | . . 1 . . Drone Launches . | . . . . . Drone Recoveries . | . . . . . Exploration | -11 -10 -10 -9 -8 ------------- Run | Yrd Mat Min Mat Mat Turns Passed 2384 | 104 590 393 240 1057 Spaces Moved 1051 | 48 290 213 108 392 Core 3 | 3 . . . . Treads 940 | 45 290 213 108 284 Legs 92 | . . . . 92 Wheels 16 | . . . . 16 Hover . | . . . . . Flight . | . . . . . Fastest Speed 50 | 50 160 160 160 120 Average Speed 163 | 153 160 160 160 170 Slowest Speed 250 | 160 160 160 160 250 Overloaded Moves . | . . . . . Propulsion Burnouts . | . . . . . Robots Hopped . | . . . . . Potential Cave-ins . | . . . . . Cave-ins Triggered . | . . . . . Exploration Rate (%) 32 | 3 52 49 16 40 Regions Visited 4 Branch Regions 1 Pre-discovered Areas 4 | . 2 1 . 1 Known Exits Taken . | . . . . . Unknown Exits Taken 4 | 1 1 1 1 . Scrap Searched . | . . . . . Spaces Dug 1 | . . . . 1 Terrain Destroyed 88 | . . . . 88 Melee 1 | . . . . 1 Projectile 1 | . . . . 1 AOE 86 | . . . . 86 Terrain Rammed . | . . . . . Walls Destroyed . | . . . . . Machines Disabled . | . . . . . Actions | -11 -10 -10 -9 -8 --------- Run | Yrd Mat Min Mat Mat Total 1387 | 65 341 239 143 599 Wait 23 | . 1 . 13 9 Move 1047 | 47 289 212 107 392 Hop . | . . . . . Pick Up 36 | 6 4 3 1 22 Fast Attach 31 | 7 2 1 . 21 Attach 17 | . 1 . 2 14 Detach 3 | . 1 . . 2 Swap 8 | . 2 1 . 5 Drop 28 | . 3 5 . 20 Fire 167 | 5 38 14 20 90 Melee 24 | . . . . 24 Ram . | . . . . . Kick . | . . . . . Crush . | . . . . . Escape Stasis . | . . . . . Rewire . | . . . . . Trap 3 | . . 3 . . Miscellaneous . | . . . . . Route ------- -11/Scrapyard -10/Materials (discovered 3 exits: [*Mat] / [*Min] / [*Sub]) -10/Mines -9/Materials -8/Materials History --------- Turn | Location | Event 10 | -11/Scrapyard | Discovered new exit (range 14) 105 | -11/Scrapyard | Entered Materials 242 | -10/Materials | Discovered new exit (range 16) 307 | -10/Materials | Build established: Mutant 526 | -10/Materials | Discovered new exit (range 7) 535 | -10/Materials | Prayed at D.C.S.S. Altar Unit 643 | -10/Materials | Discovered new exit (range 8) 695 | -10/Materials | Entered Mines 705 | -10/Mines | Met a Derelict bent on vengeance 734 | -10/Mines | Found a hidden stash of uninstalled traps 751 | -10/Mines | Learned location of Zion (-7) 761 | -10/Mines | Assembled infested the area 820 | -10/Mines | X0-1V1 put everyone to sleep 921 | -10/Mines | X0-1V1 announced a LAN party 1052 | -10/Mines | Discovered new exit (range 8) 1088 | -10/Mines | Entered Materials 1088 | -9/Materials | Evolved 2 slots: Utility x2 1183 | -9/Materials | X0-1V1 sent you to a vault 1187 | -9/Materials | X0-1V1 caused items to flee you 1321 | -9/Materials | Discovered new exit (range 3) 1328 | -9/Materials | Entered another Materials area 1328 | -8/Materials | Accompanied by 3 allies 1328 | -8/Materials | Evolved 2 slots: Propulsion x1, Utility x1 1419 | -8/Materials | X0-1V1 sent you into danger 1728 | -8/Materials | First assault squad dispatched 2033 | -8/Materials | Garrison activated, responded to threat 2072 | -8/Materials | X0-1V1 sent allied L-31 Rogue (x2) 2127 | -8/Materials | X0-1V1 sent allied L-31 Rogue (x2) 2134 | -8/Materials | Core integrity fell below 50% 2199 | -8/Materials | X0-1V1 sent allied S-10 Pest (x2) 2231 | -8/Materials | Lost 11 parts (2p4n1u4w) 2264 | -8/Materials | Core integrity fell below 20% 2385 | -8/Materials | Destroyed by Y-45 Defender with Heavy Assault Rifle Last Messages --------------- 02237_ S-10 Pest destroyed. 02237_ Acquired Wheel. 02258_ G-47 Trooper Imp. Heat Sink severed. 02269_ Destroyed Lgt. Nuclear Core. 02274_ G-47 Trooper destroyed. 02279_ Acquired 10 matter. 02284_ G-47 Trooper destroyed. 02298_ Arm. Treads+ destroyed. 02298_ G-47 Trooper destroyed. 02306_ Acquired Lgt. Nuclear Core. 02308_ Acquired Particle Gun. 02312_ Acquired Aluminum Leg. 02319_ Acquired Particle Gun. 02330_ Acquired 12 matter. 02336_ Acquired 18 matter. 02341_ Acquired Aluminum Leg. 02348_ Acquired Hvy. Laser. 02355_ Acquired Particle Charger. 02358_ Acquired Graphene Brace. 02385_ X0-1V1 chortles! Map ----- +----------------------------------------------------+ | | | | | | | | | | | | | | | ??????????????????????????????????????????????? | | ??????????????????????????????????????????????? | | ??????????????????????????????????????????????? | | ??????????????????????????????????????????????? | | ??????????????????????????????????????????????? | | ??????????????????????????????????????????????? | | ??????????????????????????????????????????????? | | ??????????????????????????????????????????????? | | ??????????????????????????????????????????????? | | ??????????????# "?????????????????????????????? | | ??????????????? ""????????????????????????????? | | ??????????????? """???????????????????????????? | | ????????????????? ??????????????????????????? | | ????????????????###+###?##?????????????#??????? | | ????????????????# [ ############## +??????? | | ????????????????# =%%[= #??????? | | ????????????????+ T[=%%==Y Y #??????? | | ????????????????#" %[o = #??????? | | ????????????????#%" *###@##########??????????? | | ????????????????## ## ! #??????????????? | | ?????????????????# ## % " #??????????????? | | ????????????????## ## "" #??????????????? | | #################" ## S" #??????????????? | | =# """ # ## !%"""%#??????????????? | | # "" # ## !!%!"" ##?????????????? | | # """ # ##[*%![!! ##?????????????? | | # # ##!%!!! ##?????????????? | | # ""T"" # ##!=% %= ##?????????????? | | # """"" # ####+#######?????????????? | | +###########/##### #?## #???????????????????? | | """ #??#=#?#######???????????? | | % "Y"[ #??#%#?# ! #???????????? | | = #??#=#?# ##??????????? | | #######+#####! ##??#!#?# """ +???????????? | | ####? ??# /[ #???# #?# """ #???????????? | | #???# """ ## [! #???# #?# """ #???????????? | | #???# """ ## [ #???# #?# #???????????? | | #???# """ ## ! #?###*### ! #???????????? | | #???# ## *%=#?# ##+##### ##???????? | | #???# ## [!= #?# %% #???????? | | #???######### !! ! #???????? | | #???????????# ######### #???????? | | #???????????# ????????# ####### #???????? | +----------------------------------------------------+ Best States ------------- Heat Dissipation 81 Energy Generation 18 Energy Capacity 290 Matter Stores 300 Matter Capacity 300 Sight Range 16 Robot Scan Range 15 Terrain Scan Density 10 Resistance: EX 25 Evasion (%) 45 Targeting Accuracy 8 Recoil Reduction 3 Item Schematics ----------------- None Robot Schematics ------------------ None Fabricated ------------ Nothing Repaired ---------- Nothing Studied --------- Arm. Treads | -8/Materials | Hacked Adv. Treads | -8/Materials | Hacked Grenade Launcher | -8/Materials | Hacked Alien Tech Used ----------------- None Achievements -------------- None Challenges ------------ None Game ------ Seed SingularityReflectiveMinigun Manual? 0 Play Time 00:31:14 Cumulative 106.4 hours Start 2026.08.25 @ 14:06:02 End 2026.08.25 @ 14:41:58 Sessions 1 Manual Loads 0 Difficulty Rogue Special Mode None Game No. 98 Rogue 96 Adventurer 2 Explorer 0 Win Type - Total 0 Types 0/0/0/0/0/0/0/0/0/0 Lore% 47 Gallery% 43 Achievement% 34 Wizard Run 0 Options --------- Layout 0 ASCII 0 Keyboard 0 Movement Mouse Keybinds 0 Fullscreen 2 Font 24/Smallcaps Map View 76x50 Zoom Use 0% Tactical HUD 1 Map Filters NONE Filters NONE Steam 1 RUN: 83b1880c-8811-47a8-8b5b-93ee5088e5d7